bitfinex/quotes_ETHUSD_20240701
["timestamp","ask_amount","ask_price","bid_price","bid_amount"]
[1719795244958,8.097,3446.6,3445.8,4.36159]
[1719795245264,7.27,3446.6,3446.0,4.0082]
[1719795245427,3.0,3446.7,3446.0,4.0082]
[1719795245626,0.827,3446.8,3446.1,0.07575364]
[1719795245953,0.827,3446.8,3446.0,4.0082]
[1719795246153,0.827,3446.6,3446.0,4.0082]
[1719795248484,0.827,3446.4,3446.0,4.0082]
[1719795252783,0.827,3446.2,3446.0,4.0082]
[1719795253081,0.827,3446.2,3445.4,4.0971]
[1719795253243,0.827,3446.2,3445.5,0.62111301]
[1719795253584,0.827,3446.2,3445.6,4.0971]
[1719795253878,0.827,3446.2,3445.7,0.07356564]
[1719795256013,3.85039017,3446.6,3445.7,0.07356564]
[1719795256149,0.827,3446.4,3445.7,0.07356564]
[1719795256380,0.59345401,3446.3,3445.7,0.07356564]
[1719795259018,0.827,3446.1,3445.7,0.07356564]
[1719795259203,0.827,3446.1,3445.4,3.9747]
[1719795259534,0.827,3445.9,3445.4,3.9747]
[1719795260110,3.0,3446.2,3445.4,3.9747]
[1719795260111,0.827,3446.1,3445.4,3.9747]
[1719795263795,0.827,3445.9,3445.4,3.9747]
[1719795264259,0.827,3445.7,3445.4,3.9747]
[1719795264550,0.827,3445.7,3445.2,3.8038]
[1719795264759,0.827,3445.7,3445.3,0.07144861]
[1719795265062,4.1521,3446.0,3444.6,3.9091]
[1719795265268,4.1521,3446.0,3445.4,0.07137868]
[1719795265269,12.98767343,3446.0,3445.4,0.07137868]
[1719795265475,0.827,3445.4,3444.6,3.9091]
[1719795265757,0.827,3445.4,3444.7,0.07187913]
[1719795265957,0.827,3445.4,3444.8,3.9091]
[1719795267562,2.33682,3445.4,3444.8,3.9091]
[1719795267725,0.827,3444.9,3443.6,3.824]
[1719795267925,0.827,3444.9,3443.0,2.90443]
[1719795267926,0.827,3444.8,3443.7,0.827]
[1719795268126,7.27,3444.9,3444.0,0.827]
[1719795268437,3.0,3444.8,3444.2,3.824]
[1719795268942,3.0,3444.8,3444.2,4.25974069]
[1719795269447,3.0,3444.8,3444.3,0.05806425]
[1719795269627,3.0,3444.8,3444.2,4.25974069]
[1719795269628,3.0,3444.8,3444.5,3.8433]
[1719795269829,10.27,3445.2,3444.5,3.90135747]
[1719795270027,10.27,3445.2,3444.6,0.827]
[1719795270227,10.27,3445.2,3444.7,0.47283575]
[1719795270666,11.097,3445.2,3444.5,3.8433]
[1719795272436,10.27,3445.2,3444.5,3.8433]
[1719795273464,11.097,3445.2,3444.5,3.8433]
[1719795275090,0.827,3445.0,3444.5,3.8433]
[1719795275944,11.097,3445.2,3444.5,3.8433]
[1719795276151,0.827,3445.0,3444.5,3.8433]
[1719795276664,11.78983,3445.2,3444.5,3.8433]
[1719795276889,10.27,3445.2,3444.5,3.8433]
[1719795278053,10.27,3445.2,3444.5,4.72835945]
[1719795278246,10.27,3445.2,3444.8,4.0263]
[1719795278457,10.27,3445.2,3444.8,4.51743595]
[1719795278657,10.27,3445.2,3444.9,0.0694326]
[1719795280065,3.0,3445.2,3444.9,0.0694326]
[1719795280275,3.827,3445.6,3444.9,0.0694326]
[1719795280569,3.827,3445.6,3444.8,4.0263]
[1719795281173,3.0,3445.6,3444.8,4.0263]
[1719795281373,3.827,3445.6,3444.9,0.0694326]
[1719795281775,3.827,3445.6,3444.8,4.57548787]
[1719795281977,3.827,3445.6,3445.0,0.06936266]
[1719795282159,3.827,3445.6,3444.8,4.0263]
[1719795282160,0.827,3445.4,3444.8,4.0263]
[1719795282746,3.827,3445.4,3444.8,4.0263]
[1719795283676,4.1836,3445.3,3444.4,4.789]
[1719795283863,3.827,3445.2,3444.4,3.962]
[1719795284050,3.827,3445.2,3444.5,0.06970052]
[1719795284888,0.827,3445.2,3444.5,0.06970052]
[1719795285180,3.0,3445.1,3444.5,0.55557057]
[1719795285382,0.827,3445.2,3444.5,0.55557057]
[1719795287647,3.827,3445.4,3444.5,0.55557057]
[1719795287850,3.827,3445.4,3444.6,3.8813]
[1719795288158,0.827,3445.4,3444.7,0.06956893]
[1719795288383,0.827,3445.4,3444.6,3.8813]
[1719795288584,0.827,3445.4,3444.8,0.06949898]
[1719795288786,0.827,3445.4,3444.6,3.8813]
[1719795288986,0.827,3445.4,3444.9,0.06942904]
[1719795289153,0.827,3445.4,3444.6,3.8813]
[1719795289354,0.827,3445.2,3445.0,0.0693591]
[1719795289553,0.827,3445.2,3444.6,3.8813]
[1719795290999,3.827,3445.4,3444.7,0.06956893]
[1719795291153,3.827,3445.4,3444.8,3.8213]
[1719795291353,3.0,3445.6,3444.8,4.27873466]
[1719795291587,3.0,3445.6,3444.8,5.10573466]
[1719795291757,3.0,3445.6,3444.9,3.9182]
[1719795293095,3.0,3445.6,3444.8,1.27298763]
[1719795293096,3.0,3445.6,3445.1,4.0671]
[1719795293401,3.0,3445.6,3445.2,0.06920655]
[1719795293555,3.0,3445.6,3445.3,4.079]
[1719795293757,3.0,3445.6,3445.3,4.14812949]
[1719795293956,7.27,3445.7,3445.4,0.827]
[1719795294177,7.27,3445.7,3445.5,4.079]
[1719795294376,7.27,3445.7,3445.5,4.14798965]
[1719795294978,7.27,3445.7,3445.5,0.06898965]
[1719795295186,0.827,3445.6,3445.2,4.079]
[1719795295379,3.827,3445.6,3445.2,4.079]
[1719795298576,3.0,3445.6,3445.2,4.079]
[1719795299158,3.0,3445.6,3445.4,3.9297]
[1719795299492,3.0,3445.6,3445.5,0.06897658]
[1719795304163,0.827,3446.0,3445.5,0.06897658]
[1719795304385,0.827,3446.0,3445.4,3.9297]
[1719795306968,0.827,3445.8,3445.4,3.9297]
[1719795307165,0.827,3445.8,3445.1,3.9461]
[1719795307367,3.827,3445.8,3445.5,0.06895121]
[1719795307568,3.827,3445.8,3445.1,3.9461]
[1719795307797,3.0,3445.8,3445.6,0.06888129]
[1719795307984,3.101,3446.0,3445.0,3.9461]
[1719795308299,0.827,3446.0,3445.7,0.06881138]
[1719795308500,0.827,3446.0,3445.2,3.9461]
[1719795308810,3.827,3446.1,3445.2,4.00414615]
[1719795309101,3.827,3446.1,3445.4,4.0629]
[1719795309502,3.827,3446.1,3445.5,0.06895121]
[1719795309710,6.56277,3446.1,3445.5,0.06895121]
[1719795310069,3.0,3446.1,3445.5,0.06895121]
[1719795310274,3.0,3446.1,3445.6,4.1157]
[1719795310707,3.0,3446.1,3445.7,0.06881138]
[1719795311207,3.0,3446.1,3445.6,4.1157]
[1719795311415,3.0,3446.1,3445.8,0.06874147]
[1719795311706,3.0,3446.1,3445.6,4.17374279]
[1719795311906,3.0,3446.1,3445.7,0.50007428]
[1719795312211,3.0,3446.1,3445.7,0.56888566]
[1719795313002,3.827,3446.5,3445.7,0.56888566]
[1719795313185,3.827,3446.5,3445.7,0.06881138]
[1719795314812,0.827,3446.4,3445.7,0.06881138]
[1719795322695,0.827,3446.2,3445.7,0.06881138]
[1719795322891,1.2097,3446.2,3445.6,4.1157]
[1719795323091,1.2097,3446.2,3445.8,0.0687272]
[1719795323292,1.2097,3446.2,3445.7,0.06879711]
[1719795323523,1.2097,3446.2,3445.9,0.0686573]
[1719795323705,1.2097,3446.2,3445.8,0.0687272]
[1719795324041,1.2097,3446.2,3445.9,0.0686573]
[1719795324525,1.2097,3446.2,3445.6,4.1157]
[1719795324722,1.2097,3446.2,3446.0,0.0685874]
[1719795324897,1.2097,3446.2,3445.6,4.1157]
[1719795325092,1.2097,3446.2,3446.1,0.0685175]
[1719795325608,1.2097,3446.2,3445.6,4.1157]
[1719795325804,0.827,3446.2,3446.1,0.0685175]
[1719795326006,3.0,3446.5,3445.6,4.1157]
[1719795326209,3.0,3446.5,3446.1,0.0685175]
[1719795326210,0.827,3446.3,3446.1,0.0685175]
[1719795326410,0.827,3446.3,3445.6,4.1157]
[1719795326909,3.0,3446.5,3445.6,4.1157]
[1719795327110,0.827,3446.4,3445.7,0.06879711]
[1719795330734,0.827,3446.2,3445.7,0.06879711]
[1719795331033,0.827,3446.2,3445.8,0.06873157]
[1719795331209,0.827,3446.2,3445.6,4.1157]
[1719795331410,0.827,3446.2,3445.9,0.06866166]
[1719795331632,0.827,3446.2,3445.6,4.1157]
[1719795331831,0.827,3446.2,3446.0,0.06859176]
[1719795332031,0.827,3446.2,3445.6,4.1157]
[1719795332032,1.350772,3446.2,3445.6,4.1157]
[1719795332219,0.827,3446.2,3446.1,0.06852187]
[1719795332428,0.827,3446.2,3445.6,4.1157]
[1719795332922,0.827,3446.2,3445.7,0.06880148]
[1719795337721,4.41072,3446.5,3445.7,0.06880148]
[1719795338049,0.827,3446.4,3445.7,0.06880148]
[1719795338249,2.461492,3446.4,3445.7,0.06880148]
[1719795338552,5.461492,3446.4,3445.7,0.06880148]
[1719795338909,2.461492,3446.4,3445.7,0.06880148]
[1719795343449,0.827,3446.2,3445.7,0.06880148]
[1719795343658,0.827,3446.0,3445.7,0.06880148]
[1719795344146,0.827,3446.0,3445.4,3.881]
[1719795344328,0.827,3446.0,3445.8,0.06874464]
[1719795344530,0.827,3446.0,3445.4,3.881]
[1719795345021,0.827,3446.0,3445.5,0.06895438]
[1719795345230,1.33604225,3446.0,3445.5,0.06895438]
[1719795347144,0.827,3445.8,3445.5,0.06895438]
[1719795347653,0.827,3445.8,3445.4,3.881]
[1719795350858,1.33604225,3446.0,3445.4,3.881]
[1719795360441,0.50904225,3446.0,3445.4,3.881]
[1719795360641,1.33604225,3446.0,3445.4,3.881]
[1719795360967,0.827,3446.0,3445.4,3.881]
[1719795364746,3.0,3446.2,3445.4,3.881]
[1719795365366,3.827,3446.2,3445.4,3.881]
[1719795365836,0.827,3446.2,3445.4,3.881]
[1719795366172,1.40903788,3446.2,3445.4,3.881]
[1719795366565,4.40903788,3446.2,3445.4,3.881]
[1719795370772,3.0,3446.2,3445.6,2.4566]
[1719795370974,3.827,3446.4,3445.6,2.4566]
[1719795371186,3.827,3446.4,3445.8,2.3088]
[1719795371365,0.827,3446.4,3445.8,2.3088]
[1719795371563,3.0,3446.3,3445.8,2.3088]
[1719795371866,0.827,3446.4,3445.8,2.3088]
[1719795373088,0.827,3446.1,3445.8,2.3088]
[1719795374402,0.827,3445.9,3445.0,2.351]
[1719795374768,0.827,3445.9,3445.2,2.351]
[1719795375292,0.827,3445.9,3445.3,0.06846199]
[1719795375663,0.827,3445.9,3445.2,2.351]
[1719795375863,0.827,3445.9,3445.3,0.06846199]
[1719795376186,0.827,3445.9,3445.2,2.351]
[1719795376596,0.827,3445.9,3445.3,0.06846199]
[1719795376967,0.827,3445.9,3445.2,2.351]
[1719795377285,0.827,3445.9,3445.3,0.06846199]
[1719795377455,0.827,3445.9,3445.2,2.351]
[1719795377652,0.827,3445.9,3445.3,0.06846199]
[1719795377880,0.827,3445.9,3445.2,2.351]
[1719795378090,0.827,3445.9,3445.3,0.06846199]
[1719795378279,0.827,3445.9,3445.2,2.351]
[1719795378455,0.827,3445.9,3445.3,0.06846199]
[1719795378658,0.827,3446.1,3445.2,2.351]
[1719795378897,2.28088519,3446.1,3445.3,0.06846081]
[1719795379057,2.28088519,3446.1,3445.2,2.351]
[1719795379255,2.28088519,3446.1,3445.3,0.06846081]
[1719795379557,2.28088519,3446.1,3445.2,2.351]
[1719795379886,1.56370415,3446.0,3445.3,0.06846081]
[1719795380056,0.827,3445.9,3445.2,2.351]
[1719795384629,2.4435,3445.2,3443.9,2.4161]
[1719795384835,0.827,3444.6,3443.9,2.4161]
[1719795385035,0.81173923,3445.1,3443.9,2.4161]
[1719795385199,0.827,3444.7,3444.0,0.06048438]
[1719795385394,1.63873923,3444.7,3444.0,0.06048438]
[1719795385793,0.81173923,3444.6,3444.0,0.06048438]
[1719795385998,0.81173923,3444.6,3444.0,0.30814282]
[1719795386196,0.81173923,3444.6,3444.0,0.36621319]
[1719795388511,0.827,3444.8,3444.0,0.36621319]
[1719795388735,0.827,3444.6,3444.0,0.11855475]
[1719795388909,0.827,3444.4,3444.0,0.06048438]
[1719795390048,0.50622152,3444.8,3444.0,0.06048438]
[1719795390209,0.827,3444.4,3444.0,0.06048438]
[1719795390545,0.827,3444.4,3444.1,0.06046249]
[1719795390847,0.827,3444.4,3443.9,2.4161]
[1719795391227,0.827,3444.4,3444.0,0.06053247]
[1719795391550,0.827,3444.4,3443.9,2.4161]
[1719795391957,0.827,3444.4,3444.0,0.0605348]
[1719795393023,0.827,3444.2,3444.0,0.0605348]
[1719795393444,0.827,3444.2,3443.6,2.4107]
[1719795393648,0.827,3444.2,3444.1,0.06046482]
[1719795393953,0.827,3444.2,3443.6,2.4107]
[1719795394625,0.827,3444.2,3443.7,0.06074476]
[1719795397256,3.0,3444.5,3443.7,0.06074476]
[1719795397461,3.0,3444.5,3443.6,2.4107]
[1719795397462,0.827,3444.2,3443.6,2.4107]
[1719795397765,0.827,3444.2,3443.7,0.06074476]
[1719795400292,0.827,3444.2,3443.7,0.06080333]
[1719795400474,3.0,3444.5,3443.7,0.06080333]
[1719795400655,4.36974882,3444.5,3443.7,0.06080333]
[1719795400969,0.827,3444.3,3443.6,2.4107]
[1719795409294,0.827,3444.4,3443.7,0.06080333]
[1719795409493,0.827,3444.4,3443.8,2.272]
[1719795410788,0.827,3444.2,3443.8,2.272]
[1719795411478,0.827,3444.2,3443.9,0.06066335]
[1719795412910,0.827,3444.2,3443.8,2.272]
[1719795413608,1.33322152,3444.4,3443.8,2.272]
[1719795413809,2.78258034,3444.4,3443.8,2.272]
[1719795414013,3.0,3444.3,3443.8,2.272]
[1719795414825,3.827,3444.3,3443.8,2.272]
[1719795415198,0.827,3444.3,3443.8,2.272]
[1719795422416,0.50622152,3444.4,3443.8,2.272]
[1719795422622,0.827,3444.4,3443.8,2.4992]
[1719795424243,0.827,3444.4,3443.8,2.272]
[1719795425241,0.827,3444.4,3443.6,0.05806926]
[1719795425447,0.827,3444.2,3443.6,2.2572]
[1719795425640,0.827,3444.2,3443.7,0.06081495]
[1719795428558,3.0,3444.3,3443.7,0.06081495]
[1719795428738,3.827,3444.3,3443.7,0.06081495]
[1719795429623,0.827,3444.3,3443.7,0.06081495]
[1719795429827,3.0,3444.2,3443.6,2.2572]
[1719795430151,0.827,3444.3,3443.6,2.2572]
[1719795434176,0.50622152,3444.4,3443.6,2.56562]
[1719795434391,3.73019576,3444.5,3443.9,0.827]
[1719795434540,7.27,3444.6,3444.4,2.3292]
[1719795434744,7.27,3444.6,3444.5,0.827]
[1719795434980,7.27,3444.6,3444.5,3.53788036]
[1719795435356,7.27,3445.2,3444.5,3.53788036]
[1719795435553,0.827,3445.3,3444.6,0.0580558]
[1719795435783,1.20473242,3445.4,3444.7,2.3292]
[1719795435784,0.72983238,3445.4,3444.7,2.3292]
[1719795436077,0.72983238,3445.4,3444.8,0.827]
[1719795436508,1.55683238,3445.4,3444.9,0.05994238]
[1719795436720,1.55683238,3445.4,3444.7,2.3292]
[1719795437020,0.827,3445.4,3444.8,0.06001233]
[1719795437326,0.827,3445.4,3444.7,2.3292]
[1719795437327,3.827,3445.4,3444.7,2.3292]
[1719795437472,3.827,3445.4,3444.8,0.06001233]
[1719795437974,3.0,3445.4,3444.7,3.47182]
[1719795438382,3.0,3445.4,3444.8,0.06001233]
[1719795438767,3.0,3445.4,3444.7,3.1562]
[1719795439165,3.0,3445.4,3444.8,0.06001233]
[1719795439403,3.0,3445.4,3444.7,3.1562]
[1719795439768,3.0,3445.4,3444.8,0.06001233]
[1719795440192,3.0,3445.4,3444.7,3.1562]
[1719795440590,3.0,3445.4,3444.8,0.06001233]
[1719795440975,3.0,3445.4,3444.7,3.1562]
[1719795441401,3.0,3445.4,3444.8,0.06001233]
[1719795441811,3.0,3445.4,3444.7,3.1562]
[1719795442122,3.0,3445.4,3444.8,0.06001233]
[1719795442283,3.0,3445.4,3444.7,3.1562]
[1719795442484,3.0,3445.4,3444.8,0.06001233]
[1719795442692,4.15460549,3445.4,3444.7,2.3292]
[1719795442904,4.98160549,3445.4,3444.7,2.3292]
[1719795445791,4.98160549,3445.4,3444.7,60.3292]
[1719795446192,4.98160549,3445.4,3444.8,0.06001233]
[1719795446926,4.15460549,3445.4,3444.8,0.06001233]
[1719795447130,3.0,3445.4,3444.8,0.06001233]
[1719795449236,3.0,3445.4,3444.8,0.94506784]
[1719795449591,3.0,3445.4,3444.9,2.2685]
[1719795449993,3.0,3445.4,3445.1,2.2685]
[1719795450324,3.0,3445.4,3445.2,0.05969301]
[1719795450705,3.0,3445.8,3445.2,0.05969301]
[1719795451506,3.0,3445.8,3445.2,0.37569162]
[1719795452099,3.0,3445.8,3445.2,0.05969301]
[1719795452797,0.827,3445.7,3445.2,0.05969301]
[1719795455995,0.827,3445.5,3445.2,0.05969301]
[1719795456201,0.827,3445.5,3444.8,2.3417]
[1719795456434,0.827,3445.5,3445.3,0.05961648]
[1719795456632,1.30209549,3445.5,3444.8,2.3417]
[1719795456869,0.827,3445.5,3445.4,0.05954656]
[1719795457053,0.827,3445.5,3444.8,2.3417]
[1719795457567,0.827,3445.5,3444.9,0.05989623]
[1719795459736,0.47490004,3445.6,3445.0,2.2605]
[1719795459948,0.47490004,3445.6,3445.1,0.05975635]
[1719795460328,0.47490004,3445.6,3445.1,0.059686]
[1719795463863,0.47490004,3445.6,3444.8,2.4026]
[1719795464061,0.47490004,3445.6,3445.2,0.05882702]
[1719795464260,0.90509004,3445.6,3444.8,2.4026]
[1719795464465,0.90509004,3445.6,3445.3,0.05875709]
[1719795464656,0.90509004,3445.6,3444.8,2.4026]
[1719795464854,0.90509004,3445.6,3445.4,0.05868717]
[1719795465055,0.90509004,3445.6,3444.8,2.4026]
[1719795465364,0.90509004,3445.6,3444.9,0.05903683]
[1719795465578,0.173209,3445.5,3444.9,0.05903683]
[1719795472326,4.55666627,3445.9,3445.0,2.4475]
[1719795472542,0.827,3445.7,3445.0,2.4475]
[1719795472677,0.827,3445.7,3445.1,0.05889618]
[1719795473074,0.827,3445.7,3445.2,2.4475]
[1719795473523,0.827,3445.7,3445.3,0.05875632]
[1719795473722,0.827,3445.8,3445.3,0.05875632]
[1719795473879,0.827,3445.8,3445.2,2.4475]
[1719795474078,0.827,3445.8,3445.4,0.0586864]
[1719795474414,0.827,3445.8,3445.2,2.4475]
[1719795474896,0.827,3445.8,3445.3,0.05875632]
[1719795475484,0.827,3445.8,3445.2,2.4475]
[1719795475691,0.827,3445.8,3445.4,0.0586864]
[1719795475897,0.827,3445.8,3445.3,0.05875632]
[1719795476114,0.827,3445.8,3445.2,2.4475]
[1719795476288,0.827,3445.8,3445.4,0.0586864]
[1719795476618,0.827,3445.8,3445.2,2.4475]
[1719795477024,0.827,3445.8,3445.3,0.05875632]
[1719795477220,3.0,3445.9,3445.4,2.4213]
[1719795480295,0.47490004,3446.0,3445.4,2.4213]
[1719795480699,3.72940213,3446.2,3445.7,0.827]
[1719795480947,3.72940213,3446.2,3445.8,2.26]
[1719795481106,0.72940213,3446.2,3445.8,2.26]
[1719795481715,4.9863793,3446.5,3445.8,2.26]
[1719795482008,2.55533793,3446.4,3445.8,2.26]
[1719795482405,3.0,3446.3,3445.8,2.26]
[1719795483599,3.72940213,3446.5,3445.8,2.26]
[1719795483803,3.72940213,3446.5,3445.9,0.05827133]
[1719795484260,3.72940213,3446.5,3445.8,2.26]
[1719795484547,6.20653235,3446.5,3445.9,0.05827056]
[1719795484704,6.20653235,3446.5,3445.8,2.26]
[1719795485050,6.20653235,3446.5,3445.9,0.05827056]
[1719795485403,6.20653235,3446.5,3445.8,2.26]
[1719795485603,5.47713022,3446.5,3445.8,2.26]
[1719795485816,5.47713022,3446.5,3445.9,0.05827056]
[1719795486134,5.47713022,3446.5,3445.8,2.26]
[1719795486343,3.0,3446.5,3445.8,2.26]
[1719795486636,3.0,3446.5,3446.0,2.2893]
[1719795487002,3.0,3446.5,3446.1,0.05813076]
[1719795487207,3.0,3446.5,3446.0,2.2893]
[1719795487621,3.0,3446.5,3446.1,0.05813076]
[1719795487961,3.0,3446.5,3446.0,2.2893]
[1719795488172,3.0,3446.5,3446.1,0.05813076]
[1719795488312,3.0,3446.5,3446.0,2.2893]
[1719795488644,3.0,3446.5,3446.1,0.05813076]
[1719795489064,3.0,3446.5,3446.0,2.2893]
[1719795489245,3.0,3446.5,3446.2,0.05806087]
[1719795489550,3.0,3446.5,3446.0,2.2893]
[1719795489745,3.0,3446.5,3446.1,0.05813076]
[1719795489927,3.0,3446.5,3446.0,2.2893]
[1719795490131,3.0,3446.5,3446.1,0.20413076]
[1719795491724,2.972,3446.5,3446.2,2.3767]
[1719795492031,0.827,3446.9,3446.4,2.3767]
[1719795492425,0.827,3446.9,3446.5,0.05785121]
[1719795493039,7.27,3447.0,3446.6,2.4919]
[1719795493251,7.27,3447.0,3446.6,2.74687512]
[1719795493454,7.27,3447.0,3446.6,3.63190113]
[1719795493640,7.27,3447.0,3446.6,1.14000113]
[1719795493841,7.27,3447.0,3446.7,2.41379751]
[1719795494746,3.0,3446.9,3446.7,2.41379751]
[1719795494949,3.0,3446.9,3446.8,3.00453685]
[1719795495137,0.47490004,3447.2,3446.9,2.3561]
[1719795495326,7.27,3447.5,3447.1,0.827]
[1719795495660,7.27,3447.5,3447.0,0.05746389]
[1719795495661,0.47490004,3447.8,3447.2,2.41340868]
[1719795497354,0.47490004,3447.8,3447.3,0.827]
[1719795497667,0.47490004,3447.8,3447.4,0.05716899]
[1719795498225,0.47490004,3447.8,3447.5,2.425]
[1719795498651,0.47490004,3447.8,3447.6,0.05700762]
[1719795501146,4.30190004,3448.2,3447.5,2.425]
[1719795501352,0.47490004,3448.2,3447.5,2.425]
[1719795501536,0.47490004,3448.2,3447.6,0.05700762]
[1719795501741,0.47490004,3448.2,3447.5,2.425]
[1719795502064,0.47490004,3448.2,3447.6,0.05700762]
[1719795502065,0.827,3448.1,3447.6,0.05700762]
[1719795502429,0.827,3448.1,3447.5,2.425]
[1719795502865,0.827,3448.1,3447.6,0.05700762]
[1719795503252,0.827,3448.1,3447.5,2.425]
[1719795503561,0.827,3448.1,3447.6,0.05700762]
[1719795503763,0.827,3448.1,3447.5,2.425]
[1719795503952,0.827,3448.1,3447.6,0.05700762]
[1719795504149,0.827,3448.1,3447.5,2.425]
[1719795504326,0.827,3448.1,3447.6,0.05700762]
[1719795504532,0.47490004,3448.2,3447.6,0.25400161]
[1719795504743,0.47490004,3448.2,3447.7,2.4516]
[1719795504938,0.47490004,3448.2,3447.8,0.11487289]
[1719795505166,0.39847152,3449.0,3447.8,0.11487289]
[1719795505167,0.827,3448.8,3448.0,2.4516]
[1719795505377,0.47490004,3448.7,3448.4,0.827]
[1719795505664,7.74490004,3449.1,3448.5,0.05633397]
[1719795505850,0.47490004,3449.0,3448.5,0.05633397]
[1719795506526,3.47490004,3449.0,3448.3,2.4516]
[1719795506730,3.47490004,3449.0,3448.6,0.05626418]
[1719795506929,3.47490004,3449.0,3448.3,2.4516]
[1719795507154,0.47490004,3449.0,3448.3,2.4516]
[1719795507467,0.47490004,3449.0,3448.4,0.05640377]
[1719795508070,0.47490004,3449.0,3448.6,58.0]
[1719795508665,3.47490004,3449.0,3448.7,0.05619438]
[1719795510060,0.47490004,3449.0,3448.7,0.05619438]
[1719795510567,0.47490004,3449.0,3448.7,0.88319438]
[1719795510768,0.47490004,3449.0,3448.8,5.47973685]
[1719795511064,0.47490004,3449.0,3448.9,0.05601146]
[1719795511241,3.0,3449.4,3448.9,0.05601146]
[1719795511447,3.0,3449.4,3448.9,0.88301146]
[1719795511448,0.47490004,3449.4,3448.9,0.88301146]
[1719795511642,0.47490004,3449.4,3449.0,0.6420736]
[1719795512175,0.47490004,3449.4,3449.1,0.0558719]
[1719795512539,0.47490004,3449.4,3449.0,0.6420736]
[1719795512765,0.47490004,3449.4,3449.2,0.05580213]
[1719795512973,0.47490004,3449.4,3449.1,0.0558719]
[1719795513182,0.47490004,3449.4,3449.3,0.05573236]
[1719795513384,0.47490004,3449.4,3449.2,0.05580213]
[1719795513545,0.47490004,3449.4,3449.3,0.05573236]
[1719795514245,0.47490004,3449.4,3448.9,0.0579833]
[1719795514479,0.47490004,3449.4,3449.3,0.05573236]
[1719795514685,0.47490004,3449.4,3449.0,0.63647202]
[1719795514880,0.47490004,3449.4,3449.3,0.05573236]
[1719795515178,1.30190004,3449.4,3449.3,0.05573236]
[1719795515583,1.30190004,3449.4,3448.8,2.4752]
[1719795515781,1.30190004,3449.4,3448.9,3.00453685]
[1719795515977,0.47490004,3449.3,3448.9,3.06054831]
[1719795516905,0.47490004,3449.3,3448.9,3.11853163]
[1719795519076,0.827,3449.5,3448.9,3.11853163]
[1719795520293,0.0383502,3449.6,3449.0,2.4778]
[1719795520472,0.0383502,3449.6,3449.4,2.4778]
[1719795520882,0.0383502,3449.6,3449.5,0.05552315]
[1719795521271,0.0383502,3449.6,3449.4,2.4778]
[1719795521590,0.0383502,3449.6,3449.5,0.05552315]
[1719795521786,0.0383502,3449.6,3449.4,2.4778]
[1719795521956,0.0383502,3449.6,3449.4,2.72558]
[1719795522152,0.0383502,3449.6,3449.5,0.94049378]
[1719795522463,0.0383502,3449.6,3449.5,0.88252315]
[1719795522674,0.0383502,3449.6,3449.5,0.94049056]
[1719795523590,0.0383502,3449.6,3449.5,3.21809056]
[1719795523778,0.0383502,3449.6,3449.5,3.85458962]
[1719795526692,0.0383502,3449.6,3449.5,2.96962221]
[1719795526996,0.0383502,3449.6,3449.5,2.33312315]
[1719795527155,0.0383502,3449.6,3449.5,0.05552315]
[1719795527560,0.0383502,3449.6,3449.2,2.3941]
[1719795527768,0.0383502,3449.6,3449.5,0.0554636]
[1719795528067,0.0383502,3449.6,3449.2,2.3941]
[1719795528273,0.0383502,3449.6,3449.5,0.0554636]
[1719795528591,0.0383502,3449.6,3449.3,0.23941]
[1719795528790,0.0383502,3449.6,3449.5,0.0554636]
[1719795528994,0.0383502,3449.6,3449.4,0.05553336]
[1719795529168,0.8653502,3449.6,3449.5,0.0554636]
[1719795529696,0.8653502,3449.6,3448.9,3.00453685]
[1719795530000,0.827,3449.4,3449.0,0.54124369]
[1719795531276,0.827,3449.4,3448.8,2.4079]
[1719795531865,0.827,3449.4,3448.5,2.3463]
[1719795533482,0.827,3449.4,3448.6,0.05609158]
[1719795534267,0.827,3449.4,3448.6,0.11407704]
[1719795534468,0.827,3449.4,3448.6,0.05609158]
[1719795536007,0.827,3449.4,3448.6,0.11407707]
[1719795537681,0.827,3449.4,3448.6,0.05609158]
[1719795538004,0.827,3449.0,3448.7,0.32293916]
[1719795538205,0.827,3449.0,3448.8,0.055952]
[1719795538541,0.827,3449.0,3448.2,2.4096]
[1719795539204,0.827,3449.0,3448.3,0.05632534]
[1719795541032,3.827,3449.2,3448.3,0.05632534]
[1719795541245,3.827,3449.2,3448.4,0.32929253]
[1719795541541,0.827,3449.0,3448.5,0.05618574]
[1719795542043,12.77889659,3450.5,3450.0,32.0410498]
[1719795542226,0.827,3450.1,3450.0,32.0410498]
[1719795542421,24.37789259,3450.1,3450.0,32.0410498]
[1719795542604,25.97436159,3450.1,3450.0,32.0410498]
[1719795542939,33.44680359,3450.1,3450.0,23.6075498]
[1719795543121,34.70835867,3450.1,3450.0,23.6075498]
[1719795543291,37.28674989,3450.1,3450.0,23.6075498]
[1719795543491,36.96456089,3450.1,3450.0,23.6075498]
[1719795543692,38.11956089,3450.1,3450.0,23.6075498]
[1719795544014,41.11956089,3450.1,3450.0,23.6075498]
[1719795545019,36.84920689,3450.1,3450.0,23.6075498]
[1719795545797,33.11759589,3450.1,3450.0,23.6075498]
[1719795548329,34.37251897,3450.1,3450.0,23.6075498]
[1719795550527,34.06362238,3450.1,3450.0,23.6075498]
[1719795550940,32.8086993,3450.1,3450.0,23.6075498]
[1719795551113,34.0636319,3450.1,3450.0,23.6075498]
[1719795551313,33.4807159,3450.1,3450.0,23.6075498]